bitfinex-derivatives/quotes_SOLF0:USTF0_20250328
["timestamp","ask_amount","ask_price","bid_price","bid_amount"]
[1743138229854,48.6088,133.92,133.85,0.05201236]
[1743138230053,41.14,133.92,133.85,0.05201236]
[1743138230247,41.14,133.92,133.86,7.4716]
[1743138230847,41.14,133.92,133.85,0.05201236]
[1743138231855,5.7366,133.98,133.87,23.66410416]
[1743138232057,7.467,133.95,133.87,23.66410416]
[1743138232255,7.467,133.95,133.91,0.05520829]
[1743138232558,7.4674,133.94,133.91,0.05520829]
[1743138232756,41.1,133.95,133.91,0.05520829]
[1743138233055,364.0,133.99,133.91,0.05520829]
[1743138233357,41.1,133.98,133.91,0.05520829]
[1743138233655,7.4667,133.96,133.91,0.05520829]
[1743138233857,23.66410416,133.95,133.91,0.05520829]
[1743138234053,41.08,133.94,133.91,0.05520829]
[1743138235062,76.35940416,133.94,133.83,246.52]
[1743138235361,7.4716,133.87,133.8,7.475]
[1743138235557,41.08,133.87,133.79,3.9078]
[1743138235752,41.08,133.87,133.81,7.4746]
[1743138236260,0.05062597,133.86,133.83,0.05420827]
[1743138240253,0.05062597,133.86,133.84,7.4725]
[1743138240958,0.05062597,133.86,133.83,0.05420827]
[1743138242555,0.05062597,133.86,133.83,7.52770827]
[1743138242961,0.05062597,133.86,133.83,0.05420827]
[1743138244455,64.75473013,133.86,133.74,30.71746882]
[1743138244755,23.66410416,133.83,133.74,30.71746882]
[1743138244958,7.4766,133.78,133.73,8.2847]
[1743138245159,41.04,133.82,133.73,8.2847]
[1743138245562,0.05244654,133.79,133.76,0.05204565]
[1743138248663,7.4767,133.78,133.76,0.05204565]
[1743138249364,0.05244654,133.79,133.76,0.05204565]
[1743138249564,41.02,133.78,133.76,0.05204565]
[1743138249765,7.4768,133.77,133.76,0.05204565]
[1743138251465,7.4777,133.76,133.7,7.4806]
[1743138251671,7.4777,133.76,133.71,7.4802]
[1743138251969,7.4777,133.76,133.69,8.3653]
[1743138252371,41.02,133.78,133.69,8.3653]
[1743138252665,0.05305138,133.75,133.72,0.05042302]
[1743138253170,41.02,133.74,133.72,0.05042302]
[1743138253574,48.4985,133.74,133.72,0.05042302]
[1743138253968,41.02,133.74,133.72,0.05042302]
[1743138254273,0.05305138,133.75,133.72,0.05042302]
[1743138254673,0.05305138,133.75,133.73,7.479]
[1743138255870,7.4747,133.81,133.73,23.66410416]
[1743138256066,23.66410416,133.88,133.73,64.68410416]
[1743138256276,23.66410416,133.85,133.73,64.68410416]
[1743138256572,7.476,133.79,133.73,23.66410416]
[1743138256968,7.4764,133.78,133.73,31.14300416]
[1743138257171,0.05461865,133.77,133.75,0.04879428]
[1743138257574,0.05461865,133.77,133.65,45.06096263]
[1743138257575,7.481,133.7,133.65,34.77886882]
[1743138257778,41.0,133.69,133.65,30.71746882]
[1743138258672,0.05693672,133.68,133.66,0.05562105]
[1743138260181,0.05693672,133.68,133.67,7.4824]
[1743138261580,41.0,133.71,133.66,0.05562105]
[1743138261887,41.0,133.71,133.66,4.12232105]
[1743138262382,48.4793,133.73,133.66,4.12232105]
[1743138262586,0.05152145,133.7,133.68,7.4815]
[1743138262781,0.05152145,133.7,133.68,7.5365787]
[1743138263079,0.05152145,133.7,133.69,7.4813]
[1743138263486,0.05152145,133.7,133.68,0.0550787]
[1743138263686,0.05152145,133.7,133.68,7.5365787]
[1743138264583,0.05152145,133.7,133.68,0.0550787]
[1743138265880,7.53262145,133.7,133.68,0.0550787]
[1743138266481,0.05152145,133.7,133.68,0.0550787]
[1743138267184,0.05152145,133.7,133.68,7.5364787]
[1743138268188,0.05152145,133.7,133.68,0.0550787]
[1743138268889,0.05152145,133.7,133.69,7.4813]
[1743138270891,4.2903,133.79,133.68,23.71918286]
[1743138271086,40.96,133.78,133.68,23.66410416]
[1743138271278,48.4366,133.78,133.68,23.66410416]
[1743138271477,48.4366,133.78,133.74,7.4785]
[1743138272084,0.04874694,133.77,133.75,0.05699901]
[1743138273988,7.52594694,133.77,133.75,0.05699901]
[1743138274184,0.04874694,133.77,133.75,0.05699901]
[1743138274591,0.04874694,133.77,133.75,7.53459901]
[1743138275090,0.04874694,133.77,133.75,0.05699901]
[1743138275283,0.04874694,133.77,133.76,7.4774]
[1743138275694,0.04874694,133.77,133.75,7.53459901]
[1743138275987,0.04874694,133.77,133.75,0.05699901]
[1743138276689,0.04874694,133.77,133.75,7.53479901]
[1743138277096,0.04874694,133.77,133.75,0.05699901]
[1743138277494,0.04874694,133.77,133.75,7.53449901]
[1743138277794,0.04874694,133.77,133.75,0.05699901]
[1743138278592,23.66507127,133.76,133.67,7.8505]
[1743138279097,25.52957127,133.76,133.67,7.8505]
[1743138279289,25.52957127,133.76,133.66,299.95746882]
[1743138279486,25.52957127,133.76,133.66,269.24]
[1743138279997,0.05331044,133.72,133.7,0.05100934]
[1743138280300,40.95331044,133.72,133.7,0.05100934]
[1743138280493,48.43331044,133.72,133.7,0.05100934]
[1743138280692,40.95331044,133.72,133.7,0.05100934]
[1743138280896,40.95331044,133.72,133.63,58.30384009]
[1743138281100,7.4808,133.7,133.64,7.4837]
[1743138281899,0.0544096,133.68,133.66,0.0498481]
[1743138283798,40.9544096,133.68,133.6,273.1584]
[1743138284505,7.4845,133.64,133.6,273.1584]
[1743138285012,7.53332586,133.63,133.61,0.05148606]
[1743138285506,0.05644913,133.63,133.61,0.05148606]
[1743138288813,7.54134913,133.63,133.61,0.05148606]
[1743138289203,0.05644913,133.63,133.61,0.05148606]
[1743138291014,0.05644913,133.63,133.55,23.66507127]
[1743138291215,0.05644913,133.63,133.55,31.59567127]
[1743138291918,7.54144913,133.63,133.57,7.4879]
[1743138292114,7.54144913,133.63,133.58,0.05648623]
[1743138292517,0.05644913,133.63,133.58,0.05648623]
[1743138293018,7.4862,133.61,133.58,0.05648623]
[1743138293216,0.05644913,133.63,133.58,0.05648623]
[1743138293417,7.54144913,133.63,133.58,0.05648623]
[1743138293619,0.05644913,133.63,133.58,0.05648623]
[1743138295117,0.05644913,133.63,133.59,14.82517635]
[1743138295421,0.05644913,133.63,133.6,7.4862]
[1743138295620,0.05644913,133.63,133.58,0.05648623]
[1743138297921,7.4861,133.61,133.58,0.05648623]
[1743138298126,0.05644913,133.63,133.58,0.05648623]
[1743138300122,7.4854,133.62,133.58,0.05648623]
[1743138300426,0.05644913,133.63,133.58,0.05648623]
[1743138301611,40.84,133.62,133.58,0.05648623]
[1743138302215,55.66517635,133.62,133.58,0.05648623]
[1743138303126,40.84,133.62,133.58,0.05648623]
[1743138304624,0.05644913,133.63,133.58,0.05648623]
[1743138304919,0.05644913,133.63,133.59,14.82517635]
[1743138305119,0.05644913,133.63,133.61,7.4857]
[1743138305323,59.79867635,133.7,133.61,14.82517635]
[1743138305719,7.4855,133.62,133.57,22.31317635]
[1743138305924,55.64517635,133.66,133.57,14.82517635]
[1743138306528,0.04917465,133.63,133.6,0.05186918]
[1743138306931,7.4857,133.62,133.6,0.05186918]
[1743138307230,0.04917465,133.63,133.6,0.05186918]
[1743138307430,7.4858,133.61,133.6,0.05186918]
[1743138308330,55.62517635,133.62,133.55,7.9306]
[1743138308833,7.4867,133.6,133.55,7.9306]
[1743138309435,0.04847123,133.59,133.56,0.05321361]
[1743138310027,55.62517635,133.58,133.48,396.8]
[1743138310332,55.62517635,133.58,133.49,23.08507635]
[1743138310532,14.82517635,133.56,133.49,8.2599]
[1743138310925,55.62517635,133.58,133.49,8.2599]
[1743138311126,0.05534363,133.54,133.51,0.05005407]
[1743138311529,14.88051998,133.54,133.51,0.05005407]
[1743138311844,14.82517635,133.52,133.45,38.93826882]
[1743138312228,22.31717635,133.5,133.45,30.71746882]
[1743138312532,55.62517635,133.5,133.45,30.71746882]
[1743138312728,63.11727635,133.5,133.45,30.71746882]
[1743138312932,40.8,133.5,133.45,30.71746882]
[1743138313135,0.05133862,133.49,133.46,0.04982316]
[1743138314532,0.05133862,133.49,133.48,7.4931]
[1743138314729,40.78,133.53,133.47,4.0115]
[1743138314928,31.26081953,133.56,133.47,44.7915]
[1743138315236,23.77201953,133.56,133.48,4.2455]
[1743138315842,0.05537003,133.53,133.51,0.05471685]
[1743138316145,40.83537003,133.53,133.51,0.05471685]
[1743138316736,72.08738956,133.53,133.43,11.7412]
[1743138316932,7.4934,133.48,133.43,4.2455]
[1743138317129,40.78,133.49,133.43,4.2455]
[1743138317333,40.78,133.5,133.44,7.4951]
[1743138317541,64.55201953,133.5,133.43,4.2455]
[1743138317726,64.55201953,133.5,133.45,7.4947]
[1743138317932,0.04735726,133.48,133.45,0.0495205]
[1743138318342,0.04735726,133.48,133.46,7.494]
[1743138318540,0.04735726,133.48,133.45,0.0495205]
[1743138319339,3.9814,133.58,133.46,23.77201953]
[1743138319537,40.78,133.61,133.55,7.4888]
[1743138319739,40.78,133.61,133.5,40.78]
[1743138320044,40.78,133.61,133.52,7.4907]
[1743138320241,40.78,133.61,133.5,40.78]
[1743138320540,0.04757773,133.58,133.55,7.54555047]
[1743138320850,0.04757773,133.58,133.55,0.05695047]
[1743138324341,7.53517773,133.58,133.55,0.05695047]
[1743138324846,0.04757773,133.58,133.55,0.05695047]
[1743138325442,7.53507773,133.58,133.55,0.05695047]
[1743138326450,0.04757773,133.58,133.55,0.05695047]
[1743138327749,0.04757773,133.58,133.55,7.54605047]
[1743138327942,0.04757773,133.58,133.55,0.05695047]
[1743138329639,7.53537773,133.58,133.55,0.05695047]
[1743138330146,7.488,133.57,133.55,0.05695047]
[1743138330347,0.04757773,133.58,133.55,0.05695047]
[1743138330739,7.53537773,133.58,133.55,0.05695047]
[1743138331947,0.04757773,133.58,133.55,0.05695047]
[1743138332340,0.04757773,133.58,133.55,7.54565047]
[1743138333346,0.04757773,133.58,133.55,23.82897]
[1743138333751,0.04757773,133.58,133.57,7.488]
[1743138333955,44.8942,133.65,133.55,23.82897]
[1743138334249,44.8942,133.65,133.56,4.0646]
[1743138334851,23.77201953,133.63,133.56,4.0646]
[1743138335057,0.05134375,133.62,133.59,0.05409394]
[1743138335652,40.68,133.61,133.59,0.05409394]
[1743138335844,7.4871,133.59,133.53,7.4899]
[1743138336456,40.68,133.61,133.51,44.6351]
[1743138336957,0.04728766,133.57,133.55,7.53630053]
[1743138337345,0.04728766,133.57,133.56,7.4886]
[1743138337755,0.04728766,133.57,133.55,0.04750053]
[1743138337956,0.04728766,133.57,133.55,7.53640053]
[1743138338845,0.04728766,133.57,133.56,7.4886]
[1743138339051,0.04728766,133.57,133.55,0.04750053]
[1743138340059,0.04728766,133.57,133.55,7.53650053]
[1743138340462,0.04728766,133.57,133.55,0.04750053]
[1743138341451,0.04728766,133.57,133.55,7.53660053]
[1743138342063,0.04728766,133.57,133.56,7.4886]
[1743138342252,0.04728766,133.57,133.55,0.04750053]
[1743138343360,0.04728766,133.57,133.55,7.53660053]
[1743138343556,0.04728766,133.57,133.55,0.04750053]
[1743138343762,64.45930719,133.57,133.55,0.04750053]
[1743138344057,7.4886,133.56,133.55,0.04750053]
[1743138344257,64.45930719,133.57,133.55,0.04750053]
[1743138344761,7.4886,133.56,133.55,0.04750053]
[1743138346361,64.45930719,133.57,133.46,30.71746882]
[1743138346563,64.41201953,133.57,133.46,30.71746882]
[1743138346756,7.49,133.54,133.46,30.71746882]
[1743138346960,64.41201953,133.57,133.46,30.71746882]
[1743138347262,64.41201953,133.57,133.48,7.4927]
[1743138347453,0.04795716,133.53,133.5,0.05721364]
[1743138349569,40.66795716,133.53,133.5,0.05721364]
[1743138351266,7.4912,133.52,133.5,0.05721364]
[1743138351464,40.66795716,133.53,133.5,0.05721364]
[1743138352362,40.66795716,133.53,133.42,301.70641953]
[1743138352568,40.62,133.53,133.42,8.3944]
[1743138352760,40.62,133.53,133.42,39.11186882]
[1743138352965,7.494,133.47,133.42,46.60796882]
[1743138353469,0.05290526,133.46,133.43,0.05033159]
[1743138356370,0.05290526,133.46,133.44,7.4953]
[1743138356570,0.05290526,133.46,133.43,0.05033159]
[1743138356977,0.05290526,133.46,133.45,7.4947]
[1743138357470,0.05290526,133.46,133.44,7.4953]
[1743138357777,0.05290526,133.46,133.43,0.05033159]
[1743138357975,7.4926,133.49,133.43,0.05033159]
[1743138358170,7.4931,133.48,133.43,0.05033159]
[1743138358372,40.58,133.5,133.41,23.77201953]
[1743138358573,40.58,133.5,133.41,31.26891953]
[1743138358773,40.58,133.5,133.39,40.58]
[1743138359077,0.0554514,133.46,133.43,0.05129133]
[1743138359278,7.4956,133.44,133.36,269.6]
[1743138359471,40.58,133.46,133.36,269.6]
[1743138359672,40.58,133.46,133.42,7.496]
[1743138360077,40.58,133.46,133.38,23.77201953]
[1743138360479,0.05189123,133.43,133.41,0.04938426]
[1743138361589,40.56,133.46,133.41,0.04938426]
[1743138362185,7.4951,133.45,133.41,0.04938426]
[1743138362386,40.56,133.46,133.41,0.04938426]
[1743138362588,0.04982341,133.44,133.41,0.04938426]
[1743138362991,0.04982341,133.44,133.32,469.58288246]
[1743138362992,23.77201953,133.42,133.34,7.5007]
[1743138363183,40.60982341,133.44,133.33,40.56]
[1743138363486,40.56,133.44,133.36,7.4993]
[1743138363689,7.4973,133.41,133.33,40.56]
[1743138363985,40.56,133.44,133.35,23.77201953]
[1743138364193,26.15751076,133.48,133.38,23.77201953]
[1743138364385,26.15751076,133.48,133.39,8.244]
[1743138364687,7.4962,133.43,133.39,8.244]
[1743138364991,14.86700077,133.47,133.39,8.244]
[1743138365379,0.05415452,133.44,133.42,0.05353132]
[1743138365689,14.86700077,133.51,133.42,14.92053209]
[1743138365987,14.86700077,133.53,133.44,14.86700077]
[1743138366192,14.86700077,133.53,133.48,7.4926]
[1743138366583,14.86700077,133.53,133.45,7.9125]
[1743138366985,0.05323648,133.52,133.49,0.05588681]
[1743138367193,7.54423648,133.52,133.49,0.05588681]
[1743138367387,0.05323648,133.52,133.49,0.05588681]
[1743138368390,0.05323648,133.52,133.5,7.4914]
[1743138368591,0.05323648,133.52,133.49,0.05588681]
[1743138368787,0.05323648,133.52,133.5,7.4919]
[1743138369187,0.05323648,133.52,133.49,0.05588681]
[1743138369390,0.05323648,133.52,133.49,7.54828681]
[1743138369594,0.05323648,133.52,133.49,0.05588681]
[1743138369899,0.05323648,133.52,133.5,7.4919]
[1743138370300,0.05323648,133.52,133.49,0.05588681]
[1743138371302,0.05323648,133.52,133.51,7.4914]
[1743138371501,0.05323648,133.52,133.49,0.05588681]
[1743138371702,0.05323648,133.52,133.5,7.4915]
[1743138372202,0.05323648,133.52,133.51,7.4914]
[1743138373397,40.52,133.58,133.54,7.4894]
[1743138373599,40.52,133.58,133.49,0.05588681]
[1743138373799,40.52,133.58,133.48,64.30739833]
[1743138374197,64.26739833,133.6,133.48,64.30739833]
[1743138374391,23.76739833,133.6,133.48,64.30739833]
[1743138374596,0.04996682,133.55,133.54,7.4896]
[1743138374903,64.26739833,133.63,133.53,0.05462439]
[1743138375107,40.5,133.65,133.54,23.76739833]
[1743138375297,7.4843,133.64,133.54,23.76739833]
[1743138375698,7.4847,133.63,133.59,7.4867]
[1743138376107,64.26739833,133.66,133.59,7.4867]
[1743138376302,64.26739833,133.66,133.6,0.05729119]
[1743138376303,0.05508494,133.62,133.6,0.05729119]
[1743138378304,7.4834,133.66,133.6,7.54319119]
[1743138378509,7.4834,133.66,133.6,7.4859]
[1743138378710,7.4834,133.66,133.57,23.76739833]
[1743138379101,7.4826,133.67,133.57,23.76739833]
[1743138379503,0.05121631,133.63,133.61,7.53582352]
[1743138380707,0.05121631,133.63,133.61,0.05012352]
[1743138381110,0.05121631,133.63,133.61,7.53582352]
[1743138381311,0.05121631,133.63,133.61,0.05012352]
[1743138381813,0.05121631,133.63,133.61,7.53552352]
[1743138382309,0.05121631,133.63,133.61,7.53572352]
[1743138382512,0.05121631,133.63,133.61,0.05012352]
[1743138383120,0.05121631,133.63,133.61,7.53552352]
[1743138383317,0.05121631,133.63,133.61,0.05012352]
[1743138384111,23.76739833,133.72,133.61,4.05802352]
[1743138384309,7.4813,133.69,133.64,7.4838]
[1743138384820,23.76739833,133.78,133.66,23.76739833]
[1743138385009,23.76739833,133.78,133.67,4.0079]
[1743138385215,7.4769,133.77,133.72,7.4796]
[1743138385512,0.05105666,133.74,133.71,0.0519044]
[1743138386918,0.05105666,133.74,133.72,7.4795]
[1743138387117,0.05105666,133.74,133.71,0.0519044]
[1743138387521,40.4,133.8,133.71,0.0519044]
[1743138387821,40.4,133.8,133.69,333.62739833]
[1743138388015,23.76739833,133.81,133.69,333.62739833]
[1743138388219,7.4766,133.78,133.69,333.62739833]
[1743138388509,188.79818829,133.86,133.72,23.81915345]
[1743138388510,0.05585334,133.75,133.72,23.81915345]
[1743138388713,171.49704505,133.85,133.73,44.5007]
[1743138388916,131.09704505,133.85,133.75,23.76739833]
[1743138389108,138.56984505,133.85,133.79,7.4752]
[1743138389320,107.32964672,133.85,133.77,40.38]
[1743138389524,23.76739833,133.85,133.77,40.38]
[1743138389913,23.76739833,133.85,133.8,0.05384473]
[1743138390919,7.4733,133.84,133.8,0.05384473]
[1743138391118,23.76739833,133.85,133.8,0.05384473]
[1743138392223,7.4746,133.81,133.8,0.05384473]
[1743138393526,7.4762,133.79,133.74,4.0321]
[1743138393921,7.4767,133.78,133.74,4.0321]
[1743138394123,27.79679833,133.82,133.73,4.1007]
[1743138394521,7.4766,133.78,133.73,4.1007]
[1743138394833,0.05008877,133.79,133.76,0.05117948]
[1743138395020,64.1574871,133.79,133.76,0.05117948]
[1743138395335,7.4768,133.77,133.76,0.05117948]
[1743138395832,64.1574871,133.79,133.71,3.9694]
[1743138396126,64.10739833,133.79,133.68,8.2414]
[1743138396521,7.4773,133.77,133.71,7.48]
[1743138396720,64.10739833,133.79,133.71,7.48]
[1743138397128,0.05633872,133.75,133.73,0.0483474]
[1743138397528,4.0294,133.82,133.73,0.0483474]
[1743138397529,23.76739833,133.82,133.73,0.0483474]
[1743138397724,23.76739833,133.82,133.71,40.32]
[1743138397927,31.24149833,133.82,133.76,7.477]
[1743138398230,23.76739833,133.82,133.71,40.32]
[1743138398527,23.76739833,133.82,133.7,40.3]
[1743138398729,0.04919053,133.78,133.75,0.05236013]
[1743138402628,7.4769,133.77,133.75,0.05236013]
[1743138402831,0.04919053,133.78,133.75,0.05236013]
[1743138404430,0.04919053,133.78,133.75,7.52996013]
[1743138404630,0.04919053,133.78,133.75,0.05236013]
[1743138405928,40.28,133.82,133.75,0.05236013]
[1743138406125,7.4734,133.84,133.76,40.26]
[1743138406327,40.26,133.86,133.76,40.26]
[1743138406824,7.4736,133.83,133.79,7.4753]
[1743138407133,70.00899833,133.87,133.8,0.05399936]
[1743138407335,7.4732,133.84,133.8,7.52889936]
[1743138407630,40.26,133.87,133.8,0.05399936]
[1743138407826,40.26,133.87,133.8,7.52909936]
[1743138408025,23.76739833,133.88,133.8,7.52909936]
[1743138408226,64.00739833,133.88,133.8,7.52909936]
[1743138408936,64.00739833,133.88,133.8,0.05399936]
[1743138409232,23.76739833,133.9,133.82,7.474]
[1743138409431,40.24,133.89,133.81,3.9717]
[1743138409628,3.9684,133.91,133.85,0.0532557]
[1743138409826,44.2084,133.91,133.85,7.5252557]
[1743138410228,7.4694,133.91,133.85,0.0532557]
[1743138410537,23.76739833,133.93,133.86,7.4714]
[1743138410927,7.4694,133.91,133.88,0.05481259]
[1743138412134,23.76739833,133.93,133.88,0.05481259]
[1743138413130,7.4701,133.89,133.88,0.05481259]
[1743138414629,7.4715,133.87,133.82,4.2892]
[1743138414831,63.98739833,133.9,133.82,4.2892]
[1743138415325,7.4709,133.88,133.82,11.7632]
[1743138415728,63.98739833,133.9,133.82,11.7632]
[1743138415925,0.05351247,133.86,133.84,0.04812919]
[1743138416727,0.05351247,133.86,133.85,7.4723]
[1743138417129,7.4696,133.9,133.84,0.04812919]
[1743138417428,7.4696,133.9,133.82,28.05659833]
[1743138417629,7.4696,133.9,133.85,7.472]
[1743138418138,7.4702,133.89,133.86,0.04759896]
[1743138418541,7.4698,133.9,133.86,0.04759896]
[1743138419138,40.18,133.92,133.86,0.04759896]
[1743138419537,40.16,133.93,133.86,0.04759896]
[1743138420235,7.4699,133.9,133.86,0.04759896]
[1743138420437,40.16,133.93,133.86,0.04759896]
[1743138421342,7.4693,133.91,133.87,7.4712]
[1743138422043,7.4687,133.92,133.87,7.4712]
[1743138422450,40.14,133.93,133.88,7.4705]
[1743138422631,40.14,133.93,133.84,40.16]
[1743138422837,4.0142,133.97,133.89,0.05168452]
[1743138423038,40.14,133.96,133.89,0.05168452]
[1743138423235,7.4671,133.95,133.89,0.05168452]
[1743138423449,7.4671,133.95,133.91,7.4687]
[1743138424355,40.14,133.97,133.89,0.05168452]
[1743138424744,7.4676,133.94,133.89,7.52168452]
[1743138425243,7.468,133.93,133.89,0.05168452]
[1743138425547,40.14,133.97,133.89,0.05168452]
[1743138425745,23.76739833,133.95,133.89,0.05168452]
[1743138427142,7.469,133.91,133.89,0.05168452]
[1743138427349,40.12,133.93,133.89,0.05168452]
[1743138428749,7.4696,133.9,133.89,0.05168452]
[1743138430050,22.23761802,133.9,133.89,0.05168452]
[1743138430253,14.76801802,133.9,133.83,3.9634]
[1743138430665,7.4711,133.88,133.83,11.4366]
[1743138430947,14.76801802,133.9,133.83,3.9634]
[1743138431154,7.4715,133.87,133.82,11.7629]
[1743138431352,0.05298464,133.88,133.85,0.05330974]
[1743138431753,0.05298464,133.88,133.85,7.52530974]
[1743138432154,0.05298464,133.88,133.85,0.05330974]
[1743138433154,7.52398464,133.88,133.85,0.05330974]
[1743138433655,0.05298464,133.88,133.85,0.05330974]
[1743138434157,7.52368464,133.88,133.85,0.05330974]
[1743138434356,0.05298464,133.88,133.85,0.05330974]
[1743138434861,0.05298464,133.88,133.87,7.4712]
[1743138435454,0.05298464,133.88,133.86,7.4716]
[1743138435755,0.05298464,133.88,133.85,0.05330974]
[1743138436055,0.05298464,133.88,133.87,7.4712]
[1743138436257,0.05298464,133.88,133.85,0.05330974]
[1743138436560,7.4715,133.87,133.85,0.05330974]
[1743138436757,0.05298464,133.88,133.85,0.05330974]
[1743138436959,7.4716,133.87,133.85,0.05330974]
[1743138437958,7.4718,133.86,133.85,0.05330974]
[1743138438156,0.05298464,133.88,133.85,0.05330974]
[1743138438660,7.4715,133.87,133.85,0.05330974]
[1743138440457,7.52378464,133.88,133.85,0.05330974]
[1743138440762,0.05298464,133.88,133.85,0.05330974]
[1743138441558,7.52388464,133.88,133.85,0.05330974]
[1743138442252,0.05298464,133.88,133.85,0.05330974]
[1743138442962,0.05298464,133.88,133.85,7.52550974]
[1743138443152,0.05298464,133.88,133.85,0.05330974]
[1743138444061,0.05298464,133.88,133.85,7.52540974]
[1743138445259,0.05298464,133.88,133.85,0.05330974]
[1743138446165,0.05298464,133.88,133.86,7.4714]
[1743138447961,0.05298464,133.88,133.87,7.4712]
[1743138450860,29.20911201,134.01,133.87,403.44]
[1743138451062,29.20911201,134.01,133.9,23.63519349]
[1743138451365,101.7557282,134.02,133.9,23.63519349]
[1743138451366,7.4647,133.99,133.9,23.63519349]
[1743138452069,63.61519349,133.99,133.93,0.05653824]
[1743138452465,29.20911201,134.02,133.93,0.05653824]
[1743138452661,29.20911201,134.02,133.9,23.63519349]
[1743138452958,29.20911201,134.02,133.98,7.465]
[1743138453368,29.20911201,134.02,133.96,0.05717069]
[1743138453761,29.20911201,134.02,133.98,7.4647]
[1743138454160,78.12053471,134.03,134.0,14.74178888]
[1743138454471,78.12053471,134.03,134.02,14.74178888]
[1743138455468,11.3586,134.1,134.02,14.74178888]
[1743138455665,11.3586,134.1,134.02,54.68178888]
[1743138455862,92.86232359,134.12,134.07,14.74178888]
[1743138455863,78.12053471,134.12,134.07,14.74178888]
[1743138456177,78.12053471,134.12,134.08,39.94]
[1743138456358,78.12053471,134.12,134.08,39.99483931]
[1743138456562,78.12053471,134.12,134.09,7.4589]
[1743138457472,78.12053471,134.12,134.08,39.99483931]
[1743138457672,78.12053471,134.12,134.08,0.05483931]
[1743138458066,3.8869,134.11,134.08,0.05483931]
[1743138458260,51.2649,134.11,134.08,0.05483931]
[1743138458469,43.8069,134.11,134.08,0.05483931]
[1743138460966,51.2649,134.11,134.08,0.05483931]
[1743138461163,43.8069,134.11,134.08,0.05483931]
[1743138461372,51.2649,134.11,134.08,0.05483931]
[1743138461875,11.3449,134.11,134.08,0.05483931]
[1743138462572,7.4585,134.1,134.08,0.05483931]
[1743138463273,11.3449,134.11,134.08,0.05483931]
[1743138463574,3.8869,134.11,134.08,0.05483931]
[1743138463771,7.4588,134.1,134.08,0.05483931]
[1743138463964,3.8869,134.11,134.0,23.54169325]
[1743138464569,23.54169325,134.1,133.99,7.8508]
[1743138465271,0.05339972,134.06,134.03,0.05465266]
[1743138466671,7.4616,134.05,134.03,0.05465266]
[1743138467064,7.4618,134.04,134.03,0.05465266]
[1743138468573,7.4633,134.02,133.98,268.9]
[1743138468769,39.82,134.04,133.96,39.84]
[1743138468969,39.82,134.04,133.94,23.54169325]
[1743138469180,7.4636,134.01,133.95,7.4663]
[1743138469472,7.4636,134.01,133.94,23.54169325]
[1743138469776,0.0529132,133.99,133.97,0.04722012]
[1743138472368,0.0529132,133.99,133.98,7.4651]
[1743138472778,39.82,134.04,133.97,63.38891337]
[1743138473179,39.82,134.04,134.0,7.4635]
[1743138473378,39.82,134.04,133.97,63.38891337]
[1743138473580,39.82,134.04,133.99,7.4645]
[1743138473981,0.05482617,134.03,134.0,0.05554417]
[1743138474172,0.05482617,134.03,134.0,7.51934417]
[1743138474575,0.05482617,134.03,134.0,0.05554417]
[1743138475082,7.51712617,134.03,134.0,0.05554417]
[1743138475280,0.05482617,134.03,134.0,0.05554417]
[1743138475479,7.51762617,134.03,134.0,0.05554417]
[1743138475778,0.05482617,134.03,134.0,0.05554417]
[1743138476580,7.51712617,134.03,134.0,0.05554417]
[1743138477383,0.05482617,134.03,134.0,0.05554417]
[1743138478083,7.51732617,134.03,134.0,0.05554417]
[1743138479383,7.4631,134.02,134.0,0.05554417]
[1743138479583,0.05482617,134.03,134.0,0.05554417]
[1743138479881,7.51762617,134.03,134.0,0.05554417]
[1743138481576,7.463,134.02,134.0,0.05554417]
[1743138481777,0.05482617,134.03,134.0,0.05554417]
[1743138482781,7.4634,134.01,134.0,0.05554417]
[1743138483084,0.05482617,134.03,134.0,0.05554417]
[1743138483379,7.4632,134.02,134.0,0.05554417]
[1743138483585,0.05482617,134.03,134.0,0.05554417]
[1743138484087,7.4634,134.02,134.0,0.05554417]
[1743138484285,0.05482617,134.03,134.0,0.05554417]
[1743138484787,39.74,134.02,133.95,14.73784803]
[1743138484988,3.9526,134.01,133.93,14.73784803]
[1743138485292,7.4658,133.97,133.93,14.73784803]
[1743138485492,39.74,133.98,133.92,14.73784803]
[1743138486189,0.05405085,133.96,133.94,0.0567329]
[1743138486490,0.05405085,133.96,133.92,14.73784803]
[1743138486784,7.4661,133.97,133.94,0.05151872]